bitfinex-derivatives/quotes_SOLF0:USTF0_20241206
["timestamp","ask_amount","ask_price","bid_price","bid_amount"]
[1733456022073,2.2508,240.89,240.72,23.41665259]
[1733456022470,2.3178,240.99,240.72,23.41665259]
[1733456022673,2.3178,240.99,240.64,8.25343889]
[1733456022674,23.41665259,240.98,240.76,23.41665259]
[1733456022971,23.41665259,240.98,240.77,6.16]
[1733456023371,2.3178,240.99,240.79,23.41665259]
[1733456024375,115.0,241.1,240.77,6.16]
[1733456024376,31.68014925,241.23,240.88,23.41665259]
[1733456024673,23.41665259,241.14,240.92,23.41665259]
[1733456024865,0.62494265,241.13,240.93,5.92]
[1733456025374,25.48895259,241.14,240.93,5.92]
[1733456025375,23.41665259,241.14,240.93,5.92]
[1733456025572,23.41665259,241.18,240.96,23.41665259]
[1733456025779,4.72,241.19,240.96,23.41665259]
[1733456026567,23.41665259,241.24,241.0,23.41665259]
[1733456026770,23.41665259,241.3,241.04,23.41665259]
[1733456026966,2.94146281,241.29,241.05,5.92]
[1733456027170,0.62536281,241.28,241.08,23.41665259]
[1733456027372,4.6602,241.29,241.08,23.41665259]
[1733456028975,23.41665259,241.28,241.08,23.41665259]
[1733456029180,23.41665259,241.18,240.97,5.92]
[1733456029674,2.072,241.17,240.97,5.92]
[1733456029872,23.41665259,241.18,240.97,5.92]
[1733456029873,23.41665259,241.14,240.97,5.92]
[1733456030075,23.41665259,241.1,240.88,23.41665259]
[1733456030271,23.41665259,241.06,240.85,8.2602]
[1733456030475,4.8417,241.13,240.85,8.2602]
[1733456030675,23.41665259,241.07,240.85,31.67685259]
[1733456030877,23.41665259,241.13,240.91,23.41665259]
[1733456031081,2.3123,241.12,240.91,23.41665259]
[1733456031281,2.0731,241.04,240.87,23.41665259]
[1733456031479,23.41665259,241.09,240.87,23.41665259]
[1733456032379,2.0729,241.07,240.87,23.41665259]
[1733456032579,23.41665259,241.05,240.85,2.3402]
[1733456033081,2.0733,241.02,240.85,2.3402]
[1733456033281,23.41665259,241.01,240.83,5.92]
[1733456033481,25.69325259,241.01,240.83,5.92]
[1733456034376,25.69325259,241.01,240.79,23.41665259]
[1733456036893,2.074,240.94,240.79,23.41665259]
[1733456037888,2.0738,240.96,240.79,23.41665259]
[1733456038299,1.0,241.0,240.79,23.41665259]
[1733456038597,0.62509559,240.99,240.78,5.92]
[1733456038995,0.62509559,240.99,240.75,66.57665259]
[1733456039197,23.41665259,240.97,240.75,66.57665259]
[1733456039592,0.62507416,240.96,240.75,66.57665259]
[1733456039789,2.074,240.94,240.75,66.57665259]
[1733456040990,2.0741,240.93,240.75,66.57665259]
[1733456041598,2.0743,240.91,240.75,23.41665259]
[1733456041802,23.41665259,240.93,240.74,2.3204]
[1733456042094,0.6248327,240.92,240.74,2.3204]
[1733456042399,2.0745,240.88,240.73,2.0761]
[1733456042594,5.7,240.92,240.71,23.41665259]
[1733456042801,0.62478924,240.91,240.71,23.41665259]
[1733456043207,0.62478924,240.91,240.69,1.04381]
[1733456043208,23.41665259,240.89,240.69,1.04381]
[1733456043397,2.4784,240.88,240.69,1.04381]
[1733456043602,0.62465488,240.87,240.69,1.04381]
[1733456043797,2.4784,240.88,240.69,1.04381]
[1733456043798,2.0749,240.84,240.69,1.04381]
[1733456043999,2.4784,240.88,240.69,1.04381]
[1733456044400,0.62462875,240.87,240.69,1.04381]
[1733456044698,2.4784,240.88,240.69,1.04381]
[1733456044899,23.41665259,240.85,240.69,1.04381]
[1733456045404,2.4784,240.88,240.69,1.04381]
[1733456045405,2.0756,240.75,240.69,1.04381]
[1733456045601,28.87665259,240.81,240.69,1.04381]
[1733456045801,23.41665259,240.77,240.69,1.04381]
[1733456045998,23.41665259,240.73,240.5,4.4859]
[1733456046297,23.41665259,240.69,240.5,4.4859]
[1733456046699,2.0764,240.66,240.5,4.4859]
[1733456046894,23.41665259,240.69,240.44,23.41665259]
[1733456047399,23.41665259,240.65,240.44,23.41665259]
[1733456047597,23.41665259,240.61,240.4,30.63415259]
[1733456048498,25.49355259,240.61,240.4,30.63415259]
[1733456048703,2.0769,240.61,240.4,30.63415259]
[1733456048901,2.4548,240.64,240.44,23.41665259]
[1733456049405,2.4548,240.64,240.4,30.63415259]
[1733456049406,4.7831,240.64,240.4,30.63415259]
[1733456049605,4.7831,240.64,240.4,7.2175]
[1733456049606,23.41665259,240.57,240.4,7.2175]
[1733456049800,23.41665259,240.53,240.32,23.41665259]
[1733456050703,23.41665259,240.53,240.29,2.244]
[1733456050899,23.41665259,240.49,240.29,2.244]
[1733456051203,2.0784,240.43,240.29,2.244]
[1733456051506,23.41665259,240.45,240.25,4.6872]
[1733456051804,23.41665259,240.45,240.2,23.41665259]
[1733456052102,35.94055259,240.48,240.2,23.41665259]
[1733456052103,23.41665259,240.41,240.2,23.41665259]
[1733456052301,23.41665259,240.41,240.19,2.244]
[1733456052697,35.94055259,240.48,240.19,2.244]
[1733456052698,23.41665259,240.37,240.19,2.244]
[1733456052901,28.87665259,240.37,240.15,5.46]
[1733456053808,23.41665259,240.33,240.14,23.41665259]
[1733456054008,23.41665259,240.29,240.06,23.41665259]
[1733456054304,23.41665259,240.25,240.06,23.41665259]
[1733456054509,28.87665259,240.25,240.06,23.41665259]
[1733456055302,28.87665259,240.25,240.05,2.298]
[1733456055711,23.41665259,240.21,239.98,23.41665259]
[1733456055910,23.41665259,240.17,239.94,23.41665259]
[1733456056107,25.49725259,240.17,239.94,23.41665259]
[1733456056304,2.4424,240.16,239.94,23.41665259]
[1733456056504,5.48,240.15,239.94,23.41665259]
[1733456056713,23.41665259,240.13,239.89,7.0737]
[1733456056911,23.41665259,240.13,239.9,0.7654703]
[1733456057114,5.48,240.15,239.89,4.6207]
[1733456057115,23.41665259,240.09,239.89,4.6207]
[1733456057811,23.41665259,240.05,239.84,23.41665259]
[1733456058117,23.41665259,240.01,239.8,28.21775259]
[1733456058310,28.89665259,240.01,239.8,28.21775259]
[1733456058614,5.48,240.01,239.84,23.41665259]
[1733456058817,28.89665259,240.01,239.8,28.21775259]
[1733456059012,28.89665259,240.01,239.8,25.76475259]
[1733456060112,28.89665259,240.01,239.81,0.76578684]
[1733456060308,28.89665259,240.01,239.8,25.76475259]
[1733456061518,23.41665259,240.01,239.8,25.76475259]
[1733456061819,23.41665259,240.01,239.81,0.76580801]
[1733456062219,23.41665259,240.09,239.88,23.41665259]
[1733456062416,23.41665259,240.09,239.89,5.24]
[1733456062718,23.41665259,240.05,239.84,23.41665259]
[1733456062919,23.41665259,240.01,239.82,7.5355]
[1733456063111,23.41665259,240.01,239.8,25.76475259]
[1733456063312,2.3881,240.0,239.8,25.76475259]
[1733456063620,23.41665259,239.97,239.8,2.3481]
[1733456064119,3.3881,240.0,239.81,23.41665259]
[1733456064511,1.0,240.0,239.85,23.41665259]
[1733456064709,2.3881,240.08,239.85,23.41665259]
[1733456065117,2.3881,240.08,239.86,0.7656441]
[1733456065322,2.3881,240.08,239.85,23.41665259]
[1733456065817,2.3881,240.08,239.89,23.41665259]
[1733456066018,2.3881,240.08,239.9,5.24]
[1733456066220,23.41665259,240.17,239.93,23.41665259]
[1733456066424,23.41665259,240.13,239.9,5.24]
[1733456066616,23.41665259,240.09,239.9,5.24]
[1733456066821,23.41665259,240.01,239.83,5.24]
[1733456067119,23.41665259,240.01,239.81,2.4166]
[1733456067319,2.3795,240.0,239.81,2.4166]
[1733456067915,23.41665259,240.05,239.85,23.41665259]
[1733456068122,1.0,240.07,239.97,23.41665259]
[1733456068318,2.0807,240.17,239.97,23.41665259]
[1733456068521,23.41665259,240.14,239.96,5.24]
[1733456069219,23.41665259,240.1,239.89,5.24]
[1733456069420,4.4531,240.09,239.89,5.24]
[1733456069625,2.3718,240.09,239.89,28.65665259]
[1733456069823,23.41665259,240.06,239.89,5.24]
[1733456070019,23.41665259,240.02,239.85,5.24]
[1733456071118,2.322,240.08,239.86,23.41665259]
[1733456071324,2.322,240.08,239.85,5.24]
[1733456071518,23.41665259,240.02,239.85,5.24]
[1733456073622,23.41665259,240.06,239.85,28.65665259]
[1733456073823,23.41665259,240.06,239.86,0.76564268]
[1733456074021,23.41665259,240.06,239.85,28.65665259]
[1733456074221,23.41665259,240.02,239.85,5.24]
[1733456080625,23.41665259,240.02,239.82,5.24]
[1733456081221,23.41665259,239.94,239.77,65.37094095]
[1733456081525,23.41665259,239.94,239.7,7.4911]
[1733456081526,2.35,239.93,239.7,7.4911]
[1733456081730,2.35,239.93,239.73,23.41665259]
[1733456082628,2.4673,239.97,239.77,23.41665259]
[1733456083724,23.41665259,239.98,239.77,23.41665259]
[1733456083922,23.41665259,239.98,239.76,2.12304747]
[1733456084123,2.35,240.0,239.79,14.41121568]
[1733456084124,16.76121568,240.0,239.79,14.41121568]
[1733456084329,16.76121568,240.0,239.8,5.24]
[1733456085125,16.76121568,240.0,239.8,7.5474]
[1733456085326,1.0,240.01,239.8,7.5474]
[1733456085524,2.4389,240.11,239.91,14.41121568]
[1733456085727,2.4389,240.11,239.92,5.24]
[1733456086033,14.41121568,240.04,239.83,14.41121568]
[1733456086229,14.41121568,240.04,239.84,5.24]
[1733456086429,14.41121568,240.0,239.84,5.24]
[1733456086830,14.41121568,240.0,239.81,2.2807]
[1733456087030,14.41121568,240.0,239.82,5.24]
[1733456087532,14.41121568,240.04,239.83,16.64761568]
[1733456087728,14.41121568,240.0,239.83,2.2364]
[1733456087926,14.41121568,240.0,239.79,14.41121568]
[1733456088133,14.41121568,239.96,239.75,5.24]
[1733456088329,2.2704,239.95,239.75,5.24]
[1733456089839,2.2704,239.95,239.74,16.64761568]
[1733456089840,2.2704,239.95,239.76,5.24]
[1733456090935,2.2704,239.95,239.77,0.76589134]
[1733456091239,2.2704,239.95,239.74,16.64761568]
[1733456091539,14.41121568,239.94,239.75,5.02]
[1733456092145,14.41121568,239.94,239.74,2.2364]
[1733456092544,14.41121568,239.9,239.73,73.83056961]
[1733456092839,2.3898,239.93,239.73,73.83056961]
[1733456093039,3.3898,239.93,239.73,73.83056961]
[1733456094141,2.4025,239.92,239.73,73.83056961]
[1733456095544,2.4025,239.92,239.74,5.02]
[1733456096346,14.41121568,239.9,239.74,5.02]
[1733456096544,2.0831,239.88,239.73,68.81056961]
[1733456096847,14.41121568,239.9,239.73,68.81056961]
[1733456097938,8.71314448,239.89,239.73,68.81056961]
[1733456098136,14.41121568,239.9,239.73,68.81056961]
[1733456098337,14.41121568,239.86,239.55,7.84611672]
[1733456098643,14.41121568,239.82,239.6,14.41121568]
[1733456098845,2.2459,239.81,239.6,14.41121568]
[1733456099745,2.2459,239.81,239.64,14.41121568]
[1733456101250,2.2459,239.81,239.64,19.43121568]
[1733456103656,2.2459,239.81,239.6,14.41121568]
[1733456103855,2.2459,239.81,239.61,5.56638961]
[1733456104054,2.2459,239.81,239.61,4.8]
[1733456104250,2.2459,239.81,239.64,14.41121568]
[1733456105147,14.41121568,239.86,239.64,14.41121568]
[1733456105447,14.41121568,239.86,239.65,0.76620852]
[1733456105753,2.3443,239.87,239.68,14.41121568]
[1733456106053,2.3443,239.87,239.69,2.3512]
[1733456106252,2.3443,239.87,239.7,4.8]
[1733456107053,14.41121568,239.86,239.7,4.8]
[1733456107946,2.3443,239.87,239.7,4.8]
[1733456108853,2.3443,239.87,239.72,14.41121568]
[1733456109853,1.0,239.91,239.72,14.41121568]
[1733456110156,1.54057,239.93,239.84,14.41121568]
[1733456110345,1.54057,239.93,239.85,4.8]
[1733456110553,1.54057,239.93,239.85,7.043]
[1733456110752,1.54057,239.93,239.85,9.4955]
[1733456111052,14.41121568,240.13,239.92,14.41121568]
[1733456111256,14.41121568,240.24,239.92,14.41121568]
[1733456111257,2.4042,240.16,239.92,14.41121568]
[1733456111549,4.8,240.34,240.0,14.41121568]
[1733456111857,14.41121568,240.22,240.01,4.8]
[1733456112044,17.34801533,240.21,240.01,4.8]
[1733456112249,0.62386584,240.2,240.01,4.8]
[1733456112554,14.41121568,240.22,240.01,4.8]
[1733456113551,2.238,240.23,240.04,14.41121568]
[1733456113759,14.41121568,240.22,240.05,4.8]
[1733456114449,14.41121568,240.18,240.01,4.8]
[1733456114656,2.2185,240.17,240.01,4.8]
[1733456116156,4.2992,240.17,240.01,4.8]
[1733456116653,2.2185,240.17,240.01,4.8]
[1733456117455,4.2992,240.17,240.01,4.8]
[1733456118061,4.2992,240.17,239.96,14.41121568]
[1733456118062,2.0812,240.12,239.96,4.8]
[1733456118359,4.8,240.11,239.71,5.78081514]
[1733456118564,4.8,240.11,239.81,14.41121568]
[1733456118565,14.41121568,240.04,239.81,14.41121568]
[1733456118760,14.41121568,240.04,239.82,4.8]
[1733456119158,14.41121568,240.09,239.86,16.69801568]
[1733456119363,2.0814,240.09,239.86,16.69801568]
[1733456119564,14.41121568,240.09,239.86,16.69801568]
[1733456119959,2.361,240.08,239.86,16.69801568]
[1733456120161,0.62355408,240.07,239.86,16.69801568]
[1733456121062,2.0817,240.05,239.86,16.69801568]
[1733456121263,2.344,240.04,239.86,16.69801568]
[1733456124060,2.361,240.08,239.86,16.69801568]
[1733456126067,14.41121568,240.06,239.86,16.69801568]
[1733456126267,0.62293829,240.05,239.86,16.69801568]
[1733456126468,16.49291568,240.06,239.86,16.69801568]
[1733456126663,2.0817,240.06,239.86,16.69801568]
[1733456127964,2.0818,240.04,239.86,2.2868]
[1733456128171,2.361,240.08,239.86,2.2868]
[1733456128367,14.41121568,240.03,239.81,14.41121568]
[1733456128569,9.29994526,240.07,239.77,3.8467]
[1733456128570,14.41121568,239.98,239.77,3.8467]
[1733456128764,18.95121568,240.02,239.79,14.41121568]
[1733456128963,2.0822,240.0,239.79,14.41121568]
[1733456129265,14.41121568,240.02,239.79,14.41121568]
[1733456129974,4.54,240.03,239.84,14.41121568]
[1733456130164,4.54,240.03,239.84,18.95121568]
[1733456134267,18.95121568,240.03,239.84,18.95121568]
[1733456134578,2.0821,240.01,239.84,18.95121568]
[1733456135175,21.03311568,240.03,239.84,18.95121568]
[1733456137977,18.95121568,240.03,239.84,18.95121568]
[1733456138282,4.54,240.03,239.84,18.95121568]
[1733456139876,0.62370452,240.02,239.84,4.54]
[1733456140072,18.95121568,240.03,239.84,4.54]
[1733456140278,0.62377571,240.02,239.84,4.54]
[1733456140876,2.0822,240.0,239.84,4.54]
[1733456141479,18.95121568,240.03,239.8,14.41121568]
[1733456141480,2.0825,239.96,239.8,14.41121568]
[1733456141674,14.41121568,239.99,239.77,3.8467]
[1733456141981,9.01284492,239.93,239.77,3.8467]
[1733456142182,4.32,239.94,239.79,9.01284492]
[1733456142778,9.01284492,239.97,239.79,9.01284492]
[1733456143985,2.0827,239.94,239.77,3.8467]
[1733456144476,2.3262,239.96,239.77,3.8467]
[1733456144783,2.0828,239.93,239.77,3.8467]
[1733456144982,2.3262,239.96,239.77,3.8467]
[1733456145686,2.0827,239.94,239.77,3.8467]
[1733456145886,2.3262,239.96,239.77,3.8467]
[1733456146081,2.9097429,239.95,239.77,3.8467]
[1733456146275,2.2861,239.95,239.77,3.8467]
[1733456146480,2.2861,239.95,239.77,2.3266]
[1733456146978,0.62362868,239.94,239.77,2.3266]
[1733456147285,2.0829,239.91,239.77,2.3266]
[1733456147481,4.32,239.9,239.77,2.3266]
[1733456147682,4.32,239.9,239.71,14.41807042]
[1733456147985,2.0833,239.87,239.71,14.41807042]
[1733456148185,4.32,239.9,239.71,14.41807042]
[1733456149586,2.0832,239.88,239.71,14.41807042]
[1733456150883,2.0833,239.87,239.69,71.45925857]
[1733456151084,14.41807042,239.89,239.69,71.45925857]
[1733456151590,2.0834,239.86,239.69,71.45925857]
[1733456151981,14.41807042,239.89,239.69,71.45925857]
[1733456152693,14.41807042,239.93,239.71,14.41807042]
[1733456152886,4.12,239.91,239.71,14.41807042]
[1733456153081,14.41807042,239.93,239.71,14.41807042]
[1733456153792,2.2352,239.94,239.75,14.41807042]
[1733456153986,14.41807042,239.97,239.75,14.41807042]
[1733456154388,14.41807042,240.01,239.79,14.41807042]
[1733456154584,4.6229,240.06,239.83,14.41807042]
[1733456154585,2.3257,240.05,239.83,14.41807042]
[1733456154787,2.3257,240.05,239.84,2.2733]
[1733456154788,16.74377042,240.05,239.84,2.2733]
[1733456154986,18.82547042,240.05,239.84,2.2733]
[1733456155193,14.41807042,240.01,239.84,2.2733]
[1733456155690,2.3257,240.05,239.84,2.2733]
[1733456155691,4.12,240.04,239.84,2.2733]
[1733456155892,16.74377042,240.05,239.84,2.2733]
[1733456156695,2.3257,240.05,239.86,14.41807042]
[1733456157193,14.41807042,240.04,239.84,2.2733]
[1733456157392,2.3257,240.05,239.84,2.2733]
[1733456160399,2.3257,240.05,239.85,4.12]
[1733456160992,14.41807042,240.08,239.87,14.41807042]
[1733456161187,32.12095215,241.68,239.85,4.12]
[1733456161188,2.2395,240.13,239.95,14.41807042]
[1733456161388,16.65757042,240.13,239.96,1.5322]
[1733456161688,18.73857042,240.13,239.96,1.5322]
[1733456161993,16.65757042,240.13,239.96,1.5322]
[1733456162996,14.41807042,240.13,239.96,1.5322]
[1733456165697,14.41807042,240.17,239.96,15.95027042]
[1733456165898,2.3183,240.19,240.04,14.41807042]
[1733456166192,0.62320801,240.16,240.07,8.98890437]
[1733456166390,8.98890437,240.27,240.11,8.98890437]
[1733456166590,28.50601157,240.26,240.12,4.1]
[1733456166796,17.3363844,240.25,240.15,8.98890437]
[1733456166992,8.98890437,240.34,240.15,8.98890437]
[1733456167203,8.98890437,240.34,240.13,1.5302]
[1733456167204,28.49948974,240.33,240.19,8.98890437]
[1733456167496,16.70403184,240.32,240.2,4.1]
[1733456167693,2.3204,240.35,240.23,8.98890437]
[1733456167896,8.98890437,240.38,240.23,8.98890437]
[1733456168095,8.98890437,240.38,240.13,3.7833]
[1733456168096,2.0793,240.33,240.16,4.1]
[1733456168294,8.98890437,240.3,240.16,4.1]
[1733456168999,8.98890437,240.3,240.15,8.98890437]
[1733456169900,8.98890437,240.34,240.15,8.98890437]
[1733456170299,11.06810437,240.34,240.15,8.98890437]
[1733456170796,8.98890437,240.34,240.15,8.98890437]
[1733456171705,11.06810437,240.34,240.15,8.98890437]
[1733456171903,4.1,240.35,240.15,8.98890437]
[1733456172104,4.1,240.35,240.19,8.98890437]
[1733456172599,11.26510437,240.37,240.23,8.98890437]
[1733456172804,11.26510437,240.37,240.23,12.86890437]
[1733456173003,4.5166,240.42,240.27,8.98890437]
[1733456173211,0.62352732,240.41,240.31,8.98890437]
[1733456173404,4.5166,240.42,240.31,12.86890437]
[1733456174604,13.50550437,240.42,240.25,5.4069]
[1733456174809,8.98890437,240.38,240.25,3.88]
[1733456175897,2.3781,240.41,240.25,3.88]
[1733456176103,2.3781,240.41,240.27,8.98890437]
[1733456177511,8.98890437,240.38,240.16,3.88]
[1733456177702,2.0793,240.33,240.16,12.86890437]
[1733456177904,8.98890437,240.34,240.16,12.86890437]
[1733456178414,8.98890437,240.3,240.15,3.88]
[1733456178706,8.98890437,240.34,240.15,3.88]
[1733456179100,0.62237076,240.33,240.15,3.88]
[1733456179301,8.98890437,240.3,240.15,3.88]
[1733456179706,8.98890437,240.33,240.16,8.98890437]
[1733456180106,18.25000185,240.37,240.15,18.25000185]
[1733456180511,2.079,240.36,240.15,18.25000185]
[1733456180811,14.37000185,240.37,240.15,18.25000185]
[1733456181110,2.079,240.37,240.15,18.25000185]
[1733456181412,14.37000185,240.34,240.15,18.25000185]
[1733456181612,14.37000185,240.3,240.14,3.8805]
[1733456181908,14.37000185,240.26,240.03,14.37000185]
[1733456182108,2.0803,240.21,240.05,4.49575]
[1733456182413,2.0803,240.21,240.05,0.61575]
[1733456182607,14.37000185,240.22,240.05,0.61575]
[1733456182608,2.0806,240.18,240.05,0.61575]
[1733456182912,14.37000185,240.18,240.05,0.61575]
[1733456183109,2.292,240.17,240.05,0.61575]
[1733456183415,2.0809,240.14,240.05,0.61575]
[1733456183611,2.292,240.17,240.05,0.61575]
[1733456183817,3.88,240.22,240.05,0.61575]
[1733456184106,3.88,240.22,240.05,4.49575]
[1733456184606,2.0803,240.21,240.05,4.49575]
[1733456184811,3.88,240.22,240.05,4.49575]
[1733456185108,2.3054,240.24,240.07,14.37000185]
[1733456185505,4.6872,240.25,240.11,14.37000185]
[1733456185506,2.3048,240.25,240.11,14.37000185]
[1733456185709,14.37000185,240.31,240.11,14.37000185]
[1733456186110,2.0796,240.3,240.11,14.37000185]
[1733456187111,16.44950185,240.31,240.11,14.37000185]
[1733456187305,14.37000185,240.31,240.11,14.37000185]
[1733456188915,14.37000185,240.31,240.07,14.37000185]
[1733456189315,2.0798,240.27,240.07,14.37000185]
[1733456189511,14.37000185,240.31,240.11,14.37000185]
[1733456189715,6.9454,240.34,240.11,14.37000185]
[1733456189923,6.9454,240.34,240.15,14.37000185]
[1733456190216,14.37000185,240.39,240.19,14.37000185]
[1733456190414,14.37000185,240.39,240.2,6.1637]
[1733456190610,14.37000185,240.43,240.2,6.1637]
[1733456190820,0.62302494,240.42,240.2,6.1637]
[1733456191017,14.37000185,240.39,240.2,6.1637]
[1733456191413,14.37000185,240.39,240.19,3.88]
[1733456191717,14.37000185,240.35,240.19,3.88]
[1733456191910,14.37000185,240.31,240.19,3.88]
[1733456192412,2.4426,240.34,240.19,3.88]
[1733456192811,2.4426,240.34,240.19,18.25000185]
[1733456193017,14.37000185,240.39,240.19,18.25000185]
[1733456193216,14.37000185,240.39,240.2,1.5229]
[1733456193719,3.68,240.41,240.2,1.5229]
[1733456193720,5.7586,240.41,240.2,1.5229]
[1733456193911,5.7586,240.41,240.2,6.1582]
[1733456194221,3.68,240.41,240.23,14.37000185]
[1733456195816,16.44880185,240.39,240.2,6.1582]
[1733456196419,2.079,240.37,240.2,6.1582]
[1733456196620,14.37000185,240.39,240.19,18.25000185]
[1733456197113,14.37000185,240.35,240.19,3.88]
[1733456197320,14.37000185,240.39,240.19,3.88]
[1733456197520,3.68,240.41,240.22,14.37000185]
[1733456197824,14.37000185,240.39,240.19,3.88]
[1733456198012,2.0791,240.35,240.19,3.88]
[1733456198320,14.37000185,240.39,240.19,3.88]
[1733456198521,9.29340573,240.38,240.19,3.88]
[1733456198719,9.29340573,240.37,240.19,3.88]
[1733456199014,8.67029711,240.36,240.19,3.88]
[1733456199316,14.37000185,240.39,240.19,3.88]
[1733456199317,2.0792,240.34,240.19,3.88]
[1733456199817,14.37000185,240.39,240.19,3.88]
[1733456200119,8.67720679,240.38,240.19,3.88]
[1733456200315,14.37000185,240.39,240.19,3.88]
[1733456200316,8.67720679,240.37,240.19,3.88]
[1733456200624,2.0792,240.34,240.13,6.0598]
[1733456200816,2.0792,240.34,240.14,3.68]
[1733456201016,2.0792,240.34,240.15,3.68]
[1733456201423,14.37000185,240.39,240.15,3.68]
[1733456201622,17.27474735,240.38,240.16,14.37000185]
[1733456201923,2.0791,240.36,240.16,14.37000185]
[1733456202222,8.68768296,240.35,240.2,14.37000185]
[1733456202418,14.37000185,240.43,240.2,14.37000185]
[1733456202616,27.80503253,240.42,240.2,14.37000185]
[1733456202819,16.66611904,240.41,240.2,14.37000185]
[1733456203125,16.66611904,240.4,240.2,14.37000185]
[1733456203422,8.69533208,240.39,240.24,14.37000185]
[1733456203617,2.4123,240.46,240.25,3.68]
[1733456203821,16.68206593,240.45,240.25,3.68]
[1733456204020,2.0784,240.43,240.25,3.68]
[1733456204216,16.68206593,240.45,240.25,3.68]
[1733456204422,8.70384325,240.44,240.29,14.37000185]
[1733456204722,2.4123,240.46,240.26,1.5218]
[1733456204927,8.71295085,240.45,240.26,1.5218]
[1733456205129,8.71295085,240.44,240.26,1.5218]
[1733456205425,4.4905,240.46,240.26,1.5218]
[1733456205620,14.37000185,240.4,240.13,4.54]
[1733456205821,14.37000185,240.32,240.08,14.37000185]
[1733456206024,6.8432,240.31,240.12,14.37000185]
[1733456206920,6.8432,240.31,240.09,73.15858503]
[1733456206921,14.37000185,240.29,240.09,73.15858503]
[1733456207428,8.71725196,240.28,240.09,73.15858503]
[1733456207726,2.08,240.25,240.09,73.15858503]
[1733456208043,14.37000185,240.25,240.07,3.68]
[1733456208225,14.37000185,240.21,240.07,3.68]
[1733456208726,14.37000185,240.25,240.07,3.68]
[1733456208929,8.71955445,240.24,240.03,3.68]
[1733456209123,14.37000185,240.25,240.03,3.68]
[1733456209318,16.72198608,240.24,240.03,3.68]
[1733456209524,16.72201324,240.23,240.04,14.37000185]
[1733456209721,14.37000185,240.25,240.04,14.37000185]
[1733456209920,8.72444021,240.24,240.04,14.37000185]
[1733456210127,8.72967974,240.23,240.04,14.37000185]
[1733456210427,16.45000185,240.25,240.04,14.37000185]
[1733456210623,10.81100157,240.24,240.15,0.80972]
[1733456210826,14.37000185,240.21,240.0,14.37000185]
[1733456211029,14.37000185,240.17,239.96,18.05000185]
[1733456211226,3.68,240.16,239.96,18.05000185]
[1733456212332,16.72684739,240.15,239.96,18.05000185]
[1733456212632,2.2164,240.15,239.96,14.37000185]
[1733456212832,2.0811,240.12,239.94,9.7166]
[1733456213029,16.7228442,240.11,239.94,9.7166]
[1733456213227,14.37000185,240.13,239.94,9.7166]
[1733456213423,2.0812,240.11,239.94,9.7166]
[1733456213726,16.70968325,240.1,239.94,5.975]
[1733456213931,16.45110185,240.13,239.94,5.975]
[1733456214126,16.7089785,240.12,239.94,5.975]
[1733456214328,16.7089785,240.11,239.94,5.975]
[1733456214524,7.99268597,240.11,239.94,5.975]
[1733456214728,16.45110185,240.13,239.94,5.975]
[1733456215033,2.2164,240.15,239.87,2.07701564]
[1733456215034,16.69500536,240.12,239.87,2.07701564]
[1733456215228,22.97386433,240.11,239.88,14.37000185]
[1733456215424,14.37000185,240.07,239.84,18.05000185]
[1733456215628,16.45190185,240.03,239.84,3.68]
[1733456215828,3.68,240.02,239.84,3.68]
[1733456216024,6.0592,240.02,239.84,3.68]
[1733456216428,6.0592,240.02,239.84,18.05000185]
[1733456217035,3.2164,240.15,239.88,14.37000185]
[1733456217230,11.63093468,240.14,239.96,14.37000185]
[1733456217436,2.3266,240.14,239.97,3.68]
[1733456218635,2.3266,240.14,240.0,14.37000185]
[1733456218835,2.2164,240.15,240.0,14.37000185]
[1733456219834,3.68,240.2,240.0,14.37000185]
[1733456221539,14.37000185,240.19,240.0,14.37000185]
[1733456221935,2.0808,240.16,240.0,14.37000185]
[1733456222138,2.0808,240.16,239.99,3.68]
[1733456223241,14.37000185,240.17,239.99,3.68]
[1733456223538,4.6865,240.18,240.0,14.37000185]
[1733456225140,14.37000185,240.17,239.99,3.68]
[1733456227442,4.6865,240.18,240.0,14.37000185]
[1733456227941,4.6865,240.18,240.04,14.37000185]